[Event "ESP-chT Honor Division 2022"]
[Site "Linares"]
[Date "2022.09.23"]
[Round "7.22"]
[White "Suarez Garcia, Carlos"]
[Black "Masague Artero, Guerau"]
[Result "1-0"]
[ECO "A05"]
[WhiteElo "2455"]
[BlackElo "2308"]
[Annotator "TA"]
[PlyCount "129"]
[EventDate "2022.09.17"]
[EventType "team-tourn"]
[EventCountry "ESP"]
[SourceTitle "playchess.com"]
[Source "ChessBase"]
[SourceQuality "1"]
[TimeControl "5400+30"]

{[%evp 14,129,22,0,22,-44,-48,-41,-41,-93,-27,-37,-22,-22,3,0,3,-36,-22,-60,-25,-55,-53,-54,-44,-49,-4,-3,-8,-10,-15,-15,-13,-19,-19,-19,-21,-24,-21,-61,-41,-42,-42,-42,-15,-32,0,-44,0,-11,-12,-21,-8,-80,-27,-60,0,0,15,6,185,161,168,70,456,429,452,479,477,470,455,410,471,341,320,281,277,278,470,464,470,463,463,449,332,277,439,426,706,705,677,615,608,596,29950,29948,11457,7795,12372,11502,6083,995,5089,5089,29979,29979,29979,29980,29989,29983,29985,29980,29989,29990,29990,29983,29984,29983]} 1. Nf3 {[%emt 0:00:04]} Nf6 {[%emt 0:00:11]} 2. g3 {[%emt 0:00:22]} c5 {[%emt 0:13:09]} 3. Bg2 {[%emt 0:00:56]} g6 {[%emt 0:01:04]} 4. O-O {[%emt 0:01:59]} Bg7 {[%emt 0:00:30]} 5. c4 {[%emt 0:00:24]} O-O {[%emt 0:00:30]} 6. Nc3 {[%emt 0:00:22]} d5 {[%emt 0:05:24]} 7. cxd5 {[%emt 0:03:39]} Nxd5 {[%emt 0:00:06]} 8. Qa4 {[%emt 0:02:58]} Nc6 {[%emt 0:03:13] A34: Symmetrical English: 2 Nc3, lines with ...d5.} 9. Qh4 {[%emt 0:09:48]} (9. Qc4 $11 Nxc3 10. dxc3) 9... e6 $15 {[%emt 0:05:59]} 10. Qc4 {[%emt 0:00:46]} b6 {[%emt 0:05:12] Black is slightly better.} 11. d4 {[%emt 0:06:43]} (11. d3 $15) 11... Na5 {[%emt 0:07:32] [#]} (11... cxd4 $17 12. Nxd5 (12. Qxc6 Bd7 $17) 12... Qxd5) 12. Qd3 $146 {[%emt 0:01:45]} ({Predecessor:} 12. Qa4 Nxc3 13. bxc3 cxd4 14. Nxd4 Bb7 15. Ba3 Bxg2 16. Kxg2 Qd5+ 17. e4 Qxe4+ 18. f3 {½-½ (32) Schinkowski,C (2165)-Poghosyan,T (1933) Kiel 2013}) 12... Nb4 {[%emt 0:03:48]} 13. Qd1 {[%emt 0:01:12]} Bb7 {[%emt 0:08:34][%cal Rc5d4]} 14. dxc5 {[%emt 0:01:24]} bxc5 {[%emt 0:01:14]} 15. Bg5 {[%emt 0:07:39]} Qxd1 {[%emt 0:00:28]} 16. Nxd1 {[%emt 0:18:18]} Rfc8 {[%emt 0:06:08]} 17. Nd2 {[%emt 0:12:27]} Bxg2 {[%emt 0:02:13]} 18. Kxg2 {[%emt 0:00:02]} h6 {[%emt 0:00:45]} 19. Be3 {[%emt 0:00:16]} Rab8 {[%emt 0:00:28]} 20. Rc1 {[%emt 0:02:28]} c4 {[%emt 0:09:58]} (20... Nxa2 $2 21. Ra1 $18 (21. Rxc5 Rxc5 22. Bxc5 a6 $15)) 21. Bxa7 {[%emt 0:06:18]} Ra8 {[%emt 0:00:17]} 22. a3 $1 {[%emt 0:08:32]} Na2 {[%emt 0:00:09]} 23. Ra1 {[%emt 0:00:05]} Nb3 {[%emt 0:00:21]} (23... c3 {is interesting.} 24. Rxa2 cxd2 25. b4 Rxa7 26. bxa5 Rd8) 24. Nxb3 {[%emt 0:00:05]} cxb3 {[%emt 0:00:05]} 25. Be3 {[%emt 0:00:04]} Rc2 {[%emt 0:03:37][%csl LRb2,LRe2][%mdl 1024] Black has compensation.} 26. Kf3 {[%emt 0:00:42]} Kh7 {[%emt 0:00:46]} 27. Rb1 {[%emt 0:00:17]} Ra6 {[%emt 0:05:32]} 28. Re1 {[%emt 0:01:35]} Rac6 {[%emt 0:03:03]} 29. Kg2 {[%emt 0:00:33]} f5 {[%emt 0:01:17]} 30. f3 {[%emt 0:03:45]} Rd6 {[%emt 0:00:04]} 31. Kf1 {[%emt 0:00:59]} g5 {[%emt 0:00:42]} 32. f4 {[%emt 0:02:09]} Kg6 {[%emt 0:00:35]} 33. Bf2 {[%emt 0:01:13]} (33. Nf2 $1 $11 {keeps the balance.}) 33... gxf4 {[%emt 0:04:09]} (33... Rdc6 $17) 34. gxf4 {[%emt 0:00:01]} Rc4 {[%emt 0:00:01]} (34... e5 $15 35. Be3 (35. Ne3 exf4 36. Red1 Re6 $17) 35... exf4 36. Bxf4 Rd4) 35. Kg2 {[%emt 0:01:16]} Rd2 {[%emt 0:02:19]} 36. Kf3 {[%emt 0:00:18]} Re4 $2 {[%emt 0:02:47]} (36... Rdc2 $11 {and Black is okay.}) 37. Be3 {[%emt 0:01:00]} Rc2 {[%emt 0:00:04]} 38. Nf2 {[%emt 0:00:50]} ({White should play} 38. Rg1+ $18 Kf7 39. Nf2) 38... Rxe3+ $2 {[%emt 0:03:22][%mdl 8192]} 39. Kxe3 $18 {[%emt 0:00:05]} Bxb2 {[%emt 0:00:05]} 40. Nd3 {[%emt 0:00:27]} Bxa3 {[%emt 0:01:45]} 41. Rxb3 {[%emt 0:00:34]} Be7 {[%emt 0:00:24]} 42. Ra1 {[%emt 0:02:49] [#] Hoping for Ne5+.} Bf6 {[%emt 0:00:57]} 43. Rg1+ {[%emt 0:00:12]} Kh5 {[%emt 0:00:10]} 44. Kf3 {[%emt 0:02:21]} Nc3 {[%emt 0:00:31]} 45. Rc1 {[%emt 0:01:14]} Nxe2 $2 {[%emt 0:00:05]} (45... Rxc1 {was necessary.} 46. Nxc1 e5 47. fxe5 Bxe5) 46. Rxc2 {[%emt 0:00:03]} Nd4+ {[%emt 0:00:06]} 47. Kg3 {[%emt 0:00:26]} Nxb3 {[%emt 0:00:51][%mdl 4096] Endgame KRN-KBN} 48. Rc6 {[%emt 0:00:41]} Nd4 {[%emt 0:00:01]} 49. Ra6 {[%emt 0:00:22]} Kg6 {[%emt 0:00:05]} (49... Bh4+ {might work better.} 50. Kg2 Be7) 50. Ne5+ {[%emt 0:00:38]} Kh5 {[%emt 0:02:59]} (50... Kg7 $142 51. Rd6 Nb3 52. Rxe6 Nd2) 51. Rd6 {[%emt 0:00:45]} Bh4+ 52. Kg2 {[%emt 0:00:06]} Ne2 {[%emt 0:01:03]} 53. Kf3 {[%emt 0:00:21]} Be7 {[%emt 0:00:32]} 54. Rd7 {[%emt 0:00:27]} Ng1+ {[%emt 0:00:05]} 55. Kg2 {[%emt 0:00:13]} Bc5 {[%emt 0:00:06]} 56. Nd3 {[%emt 0:01:00]} Be3 {[%emt 0:01:30]} 57. Rd6 {[%emt 0:00:01]} e5 {[%emt 0:01:28]} 58. fxe5 {[%emt 0:00:34][%cal Bf4e5,Be5e6][%mdl 32] [#] White wants to mate with Rf6.} Kg5 {[%emt 0:00:27]} 59. h4+ {[%emt 0:00:32] White mates.} Kxh4 {[%emt 0:00:30]} 60. e6 {[%emt 0:00:04]} f4 {[%emt 0:00:37]} 61. Ne5 {[%emt 0:00:48]} Bc5 {[%emt 0:00:34]} 62. Rd5 {[%emt 0:01:23]} f3+ {[%emt 0:00:14]} 63. Nxf3+ {[%emt 0:00:12]} Nxf3 {[%emt 0:00:04]} 64. Kxf3 {[%emt 0:00:05]} Ba3 {[%emt 0:00:05]} 65. Rd7 {[%emt 0:00:20] Weighted Error Value: White=0.18 (very precise) /Black=0.57} 1-0

[Event "ESP-chT Honor Division 2022"]
[Site "Linares"]
[Date "2022.09.23"]
[Round "7.23"]
[White "Jimenez Ruano, Adrian"]
[Black "Trigo Urquijo, Sergio"]
[Result "1/2-1/2"]
[ECO "A40"]
[WhiteElo "2264"]
[BlackElo "2402"]
[Annotator "TA"]
[PlyCount "28"]
[EventDate "2022.09.17"]
[EventType "team-tourn"]
[EventCountry "ESP"]
[SourceTitle "playchess.com"]
[Source "ChessBase"]
[SourceQuality "1"]
[TimeControl "5400+30"]

{[%evp 9,28,0,-1,-4,0,0,-4,-12,-6,0,-13,-14,0,0,0,0,0,0,0,-8,0]} 1. d4 {[%emt 0:00:02]} e6 {[%emt 0:00:24]} 2. c4 {[%emt 0:00:23]} b6 {[%emt 0:00:30]} 3. Nc3 {[%emt 0:01:00]} Bb7 {[%emt 0:01:01]} 4. a3 {[%emt 0:01:26]} Nf6 {[%emt 0:01:25]} 5. Qc2 {[%emt 0:01:57]} d5 {[%emt 0:01:31] The position is equal.} 6. cxd5 {[%emt 0:00:37] A40: Unusual replies to 1 d4.} Nxd5 {[%emt 0:03:43]} 7. e4 {[%emt 0:00:06]} Nxc3 {[%emt 0:00:30]} 8. bxc3 {[%emt 0:00:02]} Be7 {[%emt 0:01:59]} 9. Bd3 {[%emt 0:00:05]} c5 {[%emt 0:06:12]} 10. Nf3 {[%emt 0:00:58]} Qc7 {[%emt 0:04:15] [#]} 11. Qa4+ $146 ({Predecessor:} 11. Qb1 Nc6 12. O-O Rd8 13. Be3 Na5 14. Bb5+ Bc6 15. Ne5 O-O 16. Nxc6 Nxc6 17. Rd1 Na5 18. e5 c4 19. Ba4 Nb3 20. Bxb3 cxb3 21. Qxb3 {1-0 (42) Illescas Cordoba,M (2599)-Graf,A (2630) Lanzarote 2003}) 11... Qd7 {[%emt 0:13:22]} 12. Qc2 {[%emt 0:24:05]} Qc7 {[%emt 0:04:42]} 13. Qa4+ Qd7 {[%emt 0:14:29]} 14. Qc2 {[%emt 0:00:12]} Qc7 {[%emt 0:04:12] An uneventful encounter.  Weighted Error Value: White=0.00 (flawless) /Black=0.02 (flawless)} 1/2-1/2

[Event "ESP-chT Honor Division 2022"]
[Site "Linares"]
[Date "2022.09.23"]
[Round "7.24"]
[White "Ambartsumova, Karina"]
[Black "Rodriguez Redondo, Adhara"]
[Result "1-0"]
[ECO "D31"]
[WhiteElo "2386"]
[BlackElo "2112"]
[Annotator "TA"]
[PlyCount "103"]
[EventDate "2022.09.17"]
[EventType "team-tourn"]
[EventCountry "ESP"]
[SourceTitle "playchess.com"]
[Source "ChessBase"]
[SourceQuality "1"]
[TimeControl "5400+30"]

{[%evp 15,103,14,36,25,64,63,68,65,70,56,73,64,95,89,96,47,52,52,52,56,57,27,94,24,8,9,14,31,9,-48,-7,-47,0,-43,-40,-48,-7,-18,-39,-35,-18,-31,-35,-32,0,-42,-35,-16,-8,0,90,0,118,79,146,20,117,116,199,199,183,189,380,372,536,161,135,142,558,527,397,537,546,525,5687,5464,4690,1728,2374,1720,29981,29982,29981,29982,29983,29984,29984,29985,29984,29985]} 1. c4 {[%emt 0:00:26]} e6 {[%emt 0:00:12]} 2. Nc3 {[%emt 0:01:00]} d5 {[%emt 0:00:13]} 3. d4 {[%emt 0:00:46]} Be7 {[%emt 0:00:14]} 4. cxd5 {[%emt 0:01:30]} exd5 {[%emt 0:00:12]} 5. Bf4 {[%emt 0:00:51]} c6 {[%emt 0:00:35]} 6. Qc2 {[%emt 0:03:38]} g6 {[%emt 0:02:06]} 7. e3 {[%emt 0:03:31]} Bf5 {[%emt 0:01:57]} 8. Qd2 {[%emt 0:00:29]} Nf6 {[%emt 0:04:51]} 9. f3 {[%emt 0:01:58] D31: Queen's Gambit Declined: Semi-Slav without ...Nf6 (+ Marshall Gambit and Noteboom) and Exchange Variation lines without ...Nf6.} Nbd7 {[%emt 0:06:52]} 10. g4 {[%emt 0:08:32]} Be6 {[%emt 0:00:31][%cal Og6g5]} 11. Bd3 {[%emt 0:00:28] White is slightly better.} Nb6 {[%emt 0:09:30]} 12. Nge2 {[%emt 0:11:27] [#]} Nc4 $146 {[%emt 0:15:45]} ({Predecessor:} 12... Bd6 13. h4 h5 14. g5 Ng8 15. e4 Ne7 16. Bxd6 Qxd6 17. e5 Qd7 18. b4 Bf5 {0-1 (45) Theodoridis,C (1585)-Gkavardinas,A (2170) Thessaloniki 2022}) 13. Qc2 {[%emt 0:13:18]} Nd7 {[%emt 0:05:58]} 14. Bxc4 {[%emt 0:10:54] Threatens to win with Bd3.} dxc4 {[%emt 0:04:55]} 15. e4 {[%emt 0:00:27]} ({White should try} 15. O-O-O $16) 15... Bh4+ $14 {[%emt 0:02:40]} 16. Kf1 {[%emt 0:06:34]} g5 {[%emt 0:03:59]} 17. Be3 {[%emt 0:01:29]} Nf6 {[%emt 0:05:03]} 18. Qd2 {[%emt 0:10:08]} Rg8 {[%emt 0:02:45]} (18... h5 $11 {keeps the balance.}) 19. e5 {[%emt 0:02:03]} (19. Rd1 $16) 19... Nd5 $11 {[%emt 0:03:46]} 20. Ne4 {[%emt 0:00:15]} Qd7 $1 {[%emt 0:09:42]} 21. Nd6+ {[%emt 0:00:59] Pair of Knights!} Kd8 {[%emt 0:01:05]} 22. Ng3 {[%emt 0:03:24] Against f5} (22. Nc3 $11) 22... h5 {[%emt 0:03:44]} 23. Ngf5 {[%emt 0:00:57]} ({Much worse is} 23. Nxc4 hxg4 24. fxg4 Bxg4 $17) 23... Bxf5 {[%emt 0:02:23]} (23... f6 $15) 24. Nxf5 {[%emt 0:01:08]} hxg4 {[%emt 0:03:55]} 25. fxg4 {[%emt 0:00:10]} f6 {[%emt 0:02:54]} 26. Bf2 {[%emt 0:03:53]} fxe5 {[%emt 0:02:45]} 27. dxe5 {[%emt 0:00:53]} Bxf2 {[%emt 0:01:07]} 28. Kxf2 {[%emt 0:01:33]} Kc7 {[%emt 0:01:51]} 29. Rhe1 {[%emt 0:01:47]} Rae8 {[%emt 0:00:22]} (29... Qh7 $5 {[%cal Rh7h2]} 30. Kg1 Qh3 $15) 30. Rad1 {[%emt 0:02:57]} Kb8 {[%emt 0:01:17]} 31. Kg1 {[%emt 0:00:22]} Qc7 {[%emt 0:02:13]} 32. e6 {[%emt 0:01:41][%cal Be5e6,Be6e7][%mdl 32]} Qf4 {[%emt 0:00:36] [#]} (32... Rh8 $11) 33. Qg2 {[%emt 0:02:04] Active counter play!} (33. Qxf4+ $1 $16 Nxf4 34. e7) 33... Rh8 {[%emt 0:00:27]} (33... Qc7 $1 $11) 34. e7 $16 {[%emt 0:02:18]} Rh7 {[%emt 0:00:20]} ({Better is} 34... Qc7) 35. Qg3 {[%emt 0:01:02]} ({White should play} 35. Rd4 $16 Qc7 36. Rxc4) 35... Kc7 {[%emt 0:00:42] [#]} (35... Qxg3+ $11 {remains equal.} 36. hxg3 Kc7) 36. Qxf4+ $1 {[%emt 0:02:14]} gxf4 {[%emt 0:00:06]} (36... Nxf4 $16 {keeps fighting.} 37. Re4 Ng6) 37. Rd4 $18 {[%emt 0:01:04]} b5 {[%emt 0:00:32]} 38. g5 {[%emt 0:00:43][%cal Bg4g5,Bg5g6,Bg6g7][%mdl 32] Strongly threatening g6.} Rf7 $2 {[%emt 0:00:53]} (38... Nxe7 39. g6 (39. Rxf4 Rf8 $11) 39... Nxf5 40. Rxe8 Rh4) 39. Re5 {[%emt 0:00:01]} Ne3 {[%emt 0:00:29]} (39... Rxf5 $142 40. Rxf5 Rxe7) 40. Rxf4 $2 {[%emt 0:00:51]} (40. Nd6 Rexe7 41. Nxf7 Rxf7 42. g6) 40... Nxf5 {[%emt 0:00:18]} 41. Rfxf5 {[%emt 0:00:00]} Rexe7 {[%emt 0:00:30][%mdl 8192] Loses the game.} (41... Rxf5 $16 {is a better chance.} 42. Rxf5 Kd7) 42. Rxe7+ {[%emt 0:00:30]} Rxe7 {[%emt 0:00:02][%mdl 4096] Endgame KR-KR} 43. g6 {[%emt 0:00:14]} Kd6 {[%emt 0:00:57]} 44. h4 {[%emt 0:00:24]} Re4 {[%emt 0:00:44]} 45. Rg5 {[%emt 0:00:17] Against Rg4+. White threatens g7 and mate.} Re8 {[%emt 0:00:31]} 46. g7 {[%emt 0:00:30]} Rg8 {[%emt 0:00:29]} 47. h5 {[%emt 0:00:01] h6 would kill now.} Ke6 {[%emt 0:00:16]} 48. h6 {[%emt 0:00:06] White mates.} Kf7 {[%emt 0:00:05]} 49. Kf2 {[%emt 0:00:56]} a5 {[%emt 0:00:51]} 50. h7 {[%emt 0:01:31]} Rxg7 {[%emt 0:00:07]} 51. Rf5+ {[%emt 0:00:15]} Kg6 {[%emt 0:00:33]} 52. h8=Q {[%emt 0:00:07] Weighted Error Value: White=0.31/Black=0.52} 1-0